[Event "Titled Tuesday Blitz May 30 Early 2023"]
[White "Bortnyk, Olexandr"]
[Black "Arabidze, Meri"]
[WhiteFideId "14120828"]
[BlackFideId "13604040"]
[WhiteElo "2734"]
[BlackElo "2405"]
[Result "1-0"]
[Round "09"]
[TimeControl "180+2"]
[Date "2023.05.30"]
[WhiteClock "0:00:05"]
[BlackClock "0:00:00"]

1. b4 {[%clk 0:03:00]}  f5 {[%clk 0:02:54]} 2. Bb2 {[%clk 0:03:00]}  Nf6 {[%clk 0:02:55]} 3. e3 {[%clk 0:02:50]}  e6 {[%clk 0:02:54]} 4. b5 {[%clk 0:02:48]}  d5 {[%clk 0:02:53]} 5. g4 {[%clk 0:02:42]}  Nxg4 {[%clk 0:02:47]} 6. Nf3 {[%clk 0:02:42]}  a6 {[%clk 0:02:42]} 7. a4 {[%clk 0:02:41]}  axb5 {[%clk 0:02:30]} 8. axb5 {[%clk 0:02:42]}  Rxa1 {[%clk 0:02:30]} 9. Bxa1 {[%clk 0:02:43]}  Nd7 {[%clk 0:02:27]} 10. Rg1 {[%clk 0:02:37]}  Ngf6 {[%clk 0:02:26]} 11. Nc3 {[%clk 0:02:31]}  g6 {[%clk 0:02:25]} 12. h4 {[%clk 0:02:26]}  Bg7 {[%clk 0:02:25]} 13. Ng5 {[%clk 0:02:24]}  Qe7 {[%clk 0:02:22]} 14. Be2 {[%clk 0:02:10]}  h6 {[%clk 0:01:54]} 15. Nh3 {[%clk 0:02:08]}  Ng4 {[%clk 0:01:40]} 16. Bxg4 {[%clk 0:02:02]}  fxg4 {[%clk 0:01:41]} 17. Qxg4 {[%clk 0:01:59]}  Ne5 {[%clk 0:01:41]} 18. Qg3 {[%clk 0:01:31]}  Qxh4 {[%clk 0:01:39]} 19. Qxh4 {[%clk 0:00:53]}  Nf3+ {[%clk 0:01:38]} 20. Ke2 {[%clk 0:00:54]}  Nxh4 {[%clk 0:01:39]} 21. Nf4 {[%clk 0:00:55]}  Kf7 {[%clk 0:01:38]} 22. Nd3 {[%clk 0:00:48]}  c6 {[%clk 0:01:26]} 23. f4 {[%clk 0:00:48]}  Nf5 {[%clk 0:01:21]} 24. b6 {[%clk 0:00:43]}  g5 {[%clk 0:01:07]} 25. Na4 {[%clk 0:00:24]}  Bxa1 {[%clk 0:01:03]} 26. Rxa1 {[%clk 0:00:25]}  gxf4 {[%clk 0:01:01]} 27. Ne5+ {[%clk 0:00:26]}  Kf6 {[%clk 0:00:50]} 28. exf4 {[%clk 0:00:26]}  Rg8 {[%clk 0:00:34]} 29. c3 {[%clk 0:00:26]}  h5 {[%clk 0:00:34]} 30. Nc5 {[%clk 0:00:25]}  h4 {[%clk 0:00:34]} 31. Kf2 {[%clk 0:00:11]}  h3 {[%clk 0:00:25]} 32. Rh1 {[%clk 0:00:09]}  Rg2+ {[%clk 0:00:24]} 33. Ke1 {[%clk 0:00:08]}  h2 {[%clk 0:00:17]} 34. Rxh2 {[%clk 0:00:07]}  Rxh2 {[%clk 0:00:13]} 35. Ng4+ {[%clk 0:00:08]}  Ke7 {[%clk 0:00:13]} 36. Nxh2 {[%clk 0:00:09]}  Kd6 {[%clk 0:00:13]} 37. d4 {[%clk 0:00:04]}  Ne3 {[%clk 0:00:13]} 38. Nf3 {[%clk 0:00:03]}  Nc4 {[%clk 0:00:13]} 39. Na4 {[%clk 0:00:03]}  Bd7 {[%clk 0:00:04]} 40. Ne5 {[%clk 0:00:04]}  Be8 {[%clk 0:00:03]} 41. Nxc4+ {[%clk 0:00:03]}  dxc4 {[%clk 0:00:04]} 42. Nc5 {[%clk 0:00:04]}  Bg6 {[%clk 0:00:02]} 43. Nxb7+ {[%clk 0:00:04]}  Kd7 {[%clk 0:00:02]} 44. Nc5+ {[%clk 0:00:05]}  Kc8 {[%clk 0:00:02]} 45. Kf2 {[%clk 0:00:03]}  Bf5 {[%clk 0:00:02]} 46. Kg3 {[%clk 0:00:03]}  Kd8 {[%clk 0:00:02]} 47. Kh4 {[%clk 0:00:03]}  Kc8 {[%clk 0:00:02]} 48. Kg5 {[%clk 0:00:04]}  Kd8 {[%clk 0:00:02]} 49. Kf6 {[%clk 0:00:04]}  Kc8 {[%clk 0:00:03]} 50. Ke5 {[%clk 0:00:05]}  Kb8 {[%clk 0:00:02]} 51. Kd6 {[%clk 0:00:05]}  Kc8 {[%clk 0:00:01]} 52. Kxc6 {[%clk 0:00:05]}  Kb8 {[%clk 0:00:00]} 53. Nd7+ {[%clk 0:00:05]} 1-0


[Site "https://www.chess.com"]

[Event "Titled Tuesday Blitz May 30 Early 2023"]
[White "Sovetbekova, Nurai"]
[Black "Petrosyan, Manuel"]
[WhiteFideId "13801910"]
[BlackFideId "13300857"]
[WhiteElo "1857"]
[BlackElo "2576"]
[Result "0-1"]
[Round "09"]
[TimeControl "180+2"]
[Date "2023.05.30"]
[WhiteClock "0:00:00"]
[BlackClock "0:00:08"]

1. d4 {[%clk 0:03:00]}  Nf6 {[%clk 0:02:58]} 2. c4 {[%clk 0:02:59]}  e6 {[%clk 0:02:59]} 3. Nc3 {[%clk 0:02:58]}  Bb4 {[%clk 0:02:58]} 4. Qc2 {[%clk 0:02:58]}  d6 {[%clk 0:02:53]} 5. Bg5 {[%clk 0:02:54]}  O-O {[%clk 0:02:48]} 6. e3 {[%clk 0:02:52]}  h6 {[%clk 0:02:47]} 7. Bh4 {[%clk 0:02:50]}  e5 {[%clk 0:02:30]} 8. dxe5 {[%clk 0:02:47]}  dxe5 {[%clk 0:02:29]} 9. Bd3 {[%clk 0:02:26]}  Be6 {[%clk 0:01:50]} 10. a3 {[%clk 0:02:12]}  Be7 {[%clk 0:01:49]} 11. Nf3 {[%clk 0:02:02]}  Nbd7 {[%clk 0:01:49]} 12. O-O {[%clk 0:02:01]}  c6 {[%clk 0:01:49]} 13. Rfd1 {[%clk 0:01:55]}  Qc7 {[%clk 0:01:29]} 14. b3 {[%clk 0:01:46]}  Rad8 {[%clk 0:01:24]} 15. h3 {[%clk 0:01:39]}  Rfe8 {[%clk 0:01:23]} 16. Bg3 {[%clk 0:01:27]}  a5 {[%clk 0:01:21]} 17. Qb2 {[%clk 0:01:09]}  Bd6 {[%clk 0:01:08]} 18. b4 {[%clk 0:00:59]}  axb4 {[%clk 0:00:56]} 19. axb4 {[%clk 0:00:59]}  b6 {[%clk 0:00:57]} 20. Ne2 {[%clk 0:00:20]}  Qb8 {[%clk 0:00:41]} 21. Rab1 {[%clk 0:00:14]}  Bc7 {[%clk 0:00:41]} 22. Qc2 {[%clk 0:00:09]}  e4 {[%clk 0:00:40]} 23. Bxe4 {[%clk 0:00:06]}  Nxe4 {[%clk 0:00:30]} 24. Bxc7 {[%clk 0:00:05]}  Qxc7 {[%clk 0:00:28]} 25. Qxe4 {[%clk 0:00:05]}  Bxh3 {[%clk 0:00:20]} 26. Qh4 {[%clk 0:00:03]}  Bf5 {[%clk 0:00:18]} 27. Ra1 {[%clk 0:00:02]}  Nf6 {[%clk 0:00:12]} 28. Ned4 {[%clk 0:00:02]}  Bg6 {[%clk 0:00:10]} 29. Qh3 {[%clk 0:00:01]}  c5 {[%clk 0:00:08]} 30. Rac1 {[%clk 0:00:00]}  cxd4 {[%clk 0:00:08]} 0-1


[Site "https://www.chess.com"]

[Event "Titled Tuesday Blitz May 30 Early 2023"]
[White "Yuan, Qingyu"]
[Black "Baghdasaryan, Vahe"]
[WhiteFideId "8609772"]
[BlackFideId "13303139"]
[WhiteElo "2359"]
[BlackElo "2216"]
[Result "1-0"]
[Round "09"]
[TimeControl "180+2"]
[Date "2023.05.30"]
[WhiteClock "0:00:13"]
[BlackClock "0:00:25"]

1. e4 {[%clk 0:03:00]}  c5 {[%clk 0:02:58]} 2. Nf3 {[%clk 0:03:01]}  e6 {[%clk 0:02:55]} 3. c3 {[%clk 0:03:00]}  Nf6 {[%clk 0:02:53]} 4. e5 {[%clk 0:03:01]}  Nd5 {[%clk 0:02:54]} 5. g3 {[%clk 0:03:01]}  b6 {[%clk 0:02:53]} 6. Bg2 {[%clk 0:03:01]}  Bb7 {[%clk 0:02:53]} 7. O-O {[%clk 0:02:55]}  Nc6 {[%clk 0:02:52]} 8. c4 {[%clk 0:02:32]}  Nc7 {[%clk 0:02:50]} 9. Nc3 {[%clk 0:02:18]}  d5 {[%clk 0:02:47]} 10. exd6 {[%clk 0:02:14]}  Bxd6 {[%clk 0:02:46]} 11. d4 {[%clk 0:02:13]}  Nxd4 {[%clk 0:02:19]} 12. Nxd4 {[%clk 0:02:12]}  Bxg2 {[%clk 0:02:19]} 13. Nxe6 {[%clk 0:01:52]}  Nxe6 {[%clk 0:02:03]} 14. Kxg2 {[%clk 0:01:52]}  O-O {[%clk 0:02:02]} 15. Re1 {[%clk 0:01:48]}  Nd4 {[%clk 0:02:02]} 16. Nd5 {[%clk 0:01:43]}  Qd7 {[%clk 0:01:55]} 17. Be3 {[%clk 0:01:38]}  Rfe8 {[%clk 0:01:46]} 18. Bxd4 {[%clk 0:01:24]}  Rxe1 {[%clk 0:01:47]} 19. Qxe1 {[%clk 0:01:25]}  cxd4 {[%clk 0:01:47]} 20. Qe4 {[%clk 0:01:25]}  Rd8 {[%clk 0:01:30]} 21. Qxd4 {[%clk 0:01:22]}  Bc5 {[%clk 0:01:31]} 22. Qd2 {[%clk 0:01:17]}  b5 {[%clk 0:01:31]} 23. b3 {[%clk 0:01:15]}  bxc4 {[%clk 0:01:30]} 24. bxc4 {[%clk 0:01:15]}  Qc6 {[%clk 0:01:29]} 25. Qd3 {[%clk 0:01:09]}  h6 {[%clk 0:01:21]} 26. Re1 {[%clk 0:01:08]}  Rb8 {[%clk 0:01:18]} 27. Qf3 {[%clk 0:01:04]}  Kf8 {[%clk 0:01:01]} 28. Re2 {[%clk 0:00:58]}  Qa4 {[%clk 0:01:01]} 29. Qf4 {[%clk 0:00:53]}  Rc8 {[%clk 0:01:00]} 30. Qf5 {[%clk 0:00:51]}  Re8 {[%clk 0:00:49]} 31. Qh7 {[%clk 0:00:15]}  f6 {[%clk 0:00:48]} 32. Rxe8+ {[%clk 0:00:10]}  Qxe8 {[%clk 0:00:47]} 33. Qf5 {[%clk 0:00:10]}  Bd4 {[%clk 0:00:42]} 34. Nf4 {[%clk 0:00:10]}  Qc6+ {[%clk 0:00:41]} 35. Qd5 {[%clk 0:00:10]}  Qxd5+ {[%clk 0:00:38]} 36. cxd5 {[%clk 0:00:09]}  Ke7 {[%clk 0:00:38]} 37. Ne6 {[%clk 0:00:10]}  Bb2 {[%clk 0:00:31]} 38. Nxg7 {[%clk 0:00:10]}  Kd6 {[%clk 0:00:31]} 39. Nf5+ {[%clk 0:00:11]}  Kxd5 {[%clk 0:00:31]} 40. Nxh6 {[%clk 0:00:11]}  Kc5 {[%clk 0:00:31]} 41. Nf5 {[%clk 0:00:11]}  Kb4 {[%clk 0:00:31]} 42. h4 {[%clk 0:00:12]}  Ka3 {[%clk 0:00:32]} 43. h5 {[%clk 0:00:12]}  Bc1 {[%clk 0:00:25]} 44. f4 {[%clk 0:00:13]} 1-0


[Site "https://www.chess.com"]

[Event "Titled Tuesday Blitz May 30 Early 2023"]
[White "Senft, Sean"]
[Black "Domingo Nunez, Ruben"]
[WhiteFideId "2044960"]
[BlackFideId "22245570"]
[WhiteElo "1989"]
[BlackElo "2404"]
[Result "0-1"]
[Round "09"]
[TimeControl "180+2"]
[Date "2023.05.30"]
[WhiteClock "0:00:24"]
[BlackClock "0:01:26"]

1. d4 {[%clk 0:03:00]}  f5 {[%clk 0:02:56]} 2. c4 {[%clk 0:02:59]}  d6 {[%clk 0:02:56]} 3. g3 {[%clk 0:02:57]}  Nf6 {[%clk 0:02:56]} 4. Bg2 {[%clk 0:02:57]}  g6 {[%clk 0:02:57]} 5. Nc3 {[%clk 0:02:56]}  Bg7 {[%clk 0:02:57]} 6. e4 {[%clk 0:02:57]}  fxe4 {[%clk 0:02:57]} 7. Nxe4 {[%clk 0:02:58]}  O-O {[%clk 0:02:58]} 8. Ne2 {[%clk 0:02:55]}  Nc6 {[%clk 0:02:58]} 9. O-O {[%clk 0:02:53]}  e5 {[%clk 0:02:58]} 10. Bg5 {[%clk 0:02:46]}  Bf5 {[%clk 0:02:54]} 11. Nxf6+ {[%clk 0:02:45]}  Bxf6 {[%clk 0:02:55]} 12. Bxf6 {[%clk 0:02:45]}  Qxf6 {[%clk 0:02:56]} 13. dxe5 {[%clk 0:02:44]}  Qxe5 {[%clk 0:02:56]} 14. Qd5+ {[%clk 0:02:36]}  Kg7 {[%clk 0:02:49]} 15. Nc3 {[%clk 0:02:30]}  Be6 {[%clk 0:02:34]} 16. Qxe5+ {[%clk 0:02:28]}  Nxe5 {[%clk 0:02:35]} 17. Bxb7 {[%clk 0:02:26]}  Rab8 {[%clk 0:02:35]} 18. Bd5 {[%clk 0:02:26]}  Bh3 {[%clk 0:02:26]} 19. Rfb1 {[%clk 0:02:16]}  c6 {[%clk 0:02:26]} 20. Bg2 {[%clk 0:02:10]}  Bf5 {[%clk 0:02:02]} 21. Rd1 {[%clk 0:02:02]}  Rxb2 {[%clk 0:01:59]} 22. Rxd6 {[%clk 0:02:02]}  Bh3 {[%clk 0:01:38]} 23. Bxh3 {[%clk 0:01:47]}  Rfxf2 {[%clk 0:01:36]} 24. Rd7+ {[%clk 0:00:25]}  Kh6 {[%clk 0:01:28]} 25. Rd3 {[%clk 0:00:24]}  Nxd3 {[%clk 0:01:26]} 0-1


[Site "https://www.chess.com"]

[Event "Titled Tuesday Blitz May 30 Early 2023"]
[White "Sahib Singh"]
[Black "Balla, Tamas-Kristof"]
[WhiteFideId "25618342"]
[BlackFideId "1208497"]
[WhiteElo "1934"]
[BlackElo "2334"]
[Result "0-1"]
[Round "09"]
[TimeControl "180+2"]
[Date "2023.05.30"]
[WhiteClock "0:00:03"]
[BlackClock "0:00:21"]

1. e4 {[%clk 0:03:00]}  c5 {[%clk 0:02:59]} 2. Nf3 {[%clk 0:03:01]}  Nc6 {[%clk 0:03:00]} 3. d4 {[%clk 0:03:01]}  cxd4 {[%clk 0:03:00]} 4. Nxd4 {[%clk 0:03:02]}  e5 {[%clk 0:03:01]} 5. Nb5 {[%clk 0:03:02]}  d6 {[%clk 0:03:02]} 6. N1c3 {[%clk 0:03:02]}  a6 {[%clk 0:03:02]} 7. Na3 {[%clk 0:03:02]}  b5 {[%clk 0:03:03]} 8. Nd5 {[%clk 0:03:03]}  Nge7 {[%clk 0:03:04]} 9. c4 {[%clk 0:03:02]}  Nxd5 {[%clk 0:03:04]} 10. exd5 {[%clk 0:03:00]}  Nd4 {[%clk 0:03:04]} 11. Bd3 {[%clk 0:02:51]}  Be7 {[%clk 0:02:50]} 12. O-O {[%clk 0:02:49]}  O-O {[%clk 0:02:50]} 13. Nc2 {[%clk 0:02:49]}  Nxc2 {[%clk 0:02:43]} 14. Qxc2 {[%clk 0:02:48]}  bxc4 {[%clk 0:02:40]} 15. Bxc4 {[%clk 0:02:44]}  f5 {[%clk 0:02:21]} 16. a4 {[%clk 0:02:36]}  f4 {[%clk 0:02:00]} 17. Bd3 {[%clk 0:02:36]}  h6 {[%clk 0:01:54]} 18. b4 {[%clk 0:02:27]}  f3 {[%clk 0:01:47]} 19. Be4 {[%clk 0:01:45]}  fxg2 {[%clk 0:01:47]} 20. Bxg2 {[%clk 0:01:45]}  Bf5 {[%clk 0:01:45]} 21. Qe2 {[%clk 0:01:40]}  Rc8 {[%clk 0:01:43]} 22. Be3 {[%clk 0:01:38]}  Bg5 {[%clk 0:01:36]} 23. Rac1 {[%clk 0:01:18]}  Qf6 {[%clk 0:01:23]} 24. a5 {[%clk 0:00:38]}  Qg6 {[%clk 0:01:19]} 25. Kh1 {[%clk 0:00:28]}  Bd3 {[%clk 0:01:17]} 26. Qg4 {[%clk 0:00:26]}  Bxf1 {[%clk 0:01:16]} 27. Rxf1 {[%clk 0:00:25]}  Rc3 {[%clk 0:00:53]} 28. Bxg5 {[%clk 0:00:12]}  Qxg5 {[%clk 0:00:42]} 29. Qe6+ {[%clk 0:00:10]}  Kh8 {[%clk 0:00:41]} 30. Qxd6 {[%clk 0:00:10]}  Rf4 {[%clk 0:00:19]} 31. Qxa6 {[%clk 0:00:09]}  Rh4 {[%clk 0:00:18]} 32. d6 {[%clk 0:00:04]}  Qf4 {[%clk 0:00:18]} 33. Qa8+ {[%clk 0:00:03]}  Kh7 {[%clk 0:00:16]} 34. Qe4+ {[%clk 0:00:03]}  Qxe4 {[%clk 0:00:17]} 35. Bxe4+ {[%clk 0:00:04]}  Rxe4 {[%clk 0:00:18]} 36. Rd1 {[%clk 0:00:02]}  Rc8 {[%clk 0:00:14]} 37. b5 {[%clk 0:00:02]}  Rb4 {[%clk 0:00:13]} 38. b6 {[%clk 0:00:02]}  Rb5 {[%clk 0:00:13]} 39. d7 {[%clk 0:00:01]}  Rd8 {[%clk 0:00:12]} 40. b7 {[%clk 0:00:01]}  Rxb7 {[%clk 0:00:12]} 41. Rd5 {[%clk 0:00:02]}  Rbxd7 {[%clk 0:00:12]} 42. Rxe5 {[%clk 0:00:02]}  Rd5 {[%clk 0:00:12]} 43. Re7 {[%clk 0:00:02]}  Rxa5 {[%clk 0:00:12]} 44. Kg2 {[%clk 0:00:02]}  Rg5+ {[%clk 0:00:13]} 45. Kf3 {[%clk 0:00:03]}  Rd3+ {[%clk 0:00:13]} 46. Ke2 {[%clk 0:00:02]}  Ra3 {[%clk 0:00:13]} 47. Re4 {[%clk 0:00:03]}  Ra2+ {[%clk 0:00:13]} 48. Ke3 {[%clk 0:00:03]}  Rf5 {[%clk 0:00:14]} 49. f3 {[%clk 0:00:03]}  Ra3+ {[%clk 0:00:14]} 50. Ke2 {[%clk 0:00:04]}  Raxf3 {[%clk 0:00:15]} 51. h4 {[%clk 0:00:04]}  Rf2+ {[%clk 0:00:15]} 52. Ke3 {[%clk 0:00:05]}  R2f3+ {[%clk 0:00:16]} 53. Ke2 {[%clk 0:00:05]}  Ra3 {[%clk 0:00:16]} 54. Rc4 {[%clk 0:00:04]}  Rb5 {[%clk 0:00:16]} 55. Rc2 {[%clk 0:00:03]}  Rbb3 {[%clk 0:00:17]} 56. Kf2 {[%clk 0:00:02]}  Rh3 {[%clk 0:00:17]} 57. Kg2 {[%clk 0:00:03]}  Rag3+ {[%clk 0:00:17]} 58. Kf2 {[%clk 0:00:03]}  Rh2+ {[%clk 0:00:18]} 59. Kxg3 {[%clk 0:00:03]}  Rxc2 {[%clk 0:00:18]} 60. h5 {[%clk 0:00:04]}  Rc5 {[%clk 0:00:19]} 61. Kg4 {[%clk 0:00:05]}  Rg5+ {[%clk 0:00:19]} 62. Kh4 {[%clk 0:00:05]}  Kg8 {[%clk 0:00:20]} 63. Kh3 {[%clk 0:00:05]}  Rxh5+ {[%clk 0:00:20]} 64. Kg4 {[%clk 0:00:05]}  Rg5+ {[%clk 0:00:21]} 65. Kh4 {[%clk 0:00:06]}  Kf7 {[%clk 0:00:22]} 66. Kh3 {[%clk 0:00:07]}  Kg6 {[%clk 0:00:23]} 67. Kh4 {[%clk 0:00:07]}  Kf5 {[%clk 0:00:23]} 68. Kh3 {[%clk 0:00:08]}  Kf4 {[%clk 0:00:24]} 69. Kh4 {[%clk 0:00:05]}  Kf3 {[%clk 0:00:20]} 70. Kh3 {[%clk 0:00:03]}  Rh5# {[%clk 0:00:21]} 0-1


[Site "https://www.chess.com"]

[Event "Titled Tuesday Blitz May 30 Early 2023"]
[White "Korchmar, Vasiliy"]
[Black "Topalov, Aleksandar"]
[WhiteFideId "24131750"]
[BlackFideId "925659"]
[WhiteElo "2370"]
[BlackElo "2151"]
[Result "1-0"]
[Round "09"]
[TimeControl "180+2"]
[Date "2023.05.30"]
[WhiteClock "0:00:03"]
[BlackClock "0:00:00"]

1. e4 {[%clk 0:03:00]}  e6 {[%clk 0:02:59]} 2. d4 {[%clk 0:03:00]}  d5 {[%clk 0:02:59]} 3. e5 {[%clk 0:03:00]}  Ne7 {[%clk 0:02:58]} 4. Nf3 {[%clk 0:02:59]}  Qd7 {[%clk 0:02:58]} 5. Bd3 {[%clk 0:02:55]}  b6 {[%clk 0:02:59]} 6. Qe2 {[%clk 0:02:52]}  a5 {[%clk 0:02:58]} 7. O-O {[%clk 0:02:41]}  Ba6 {[%clk 0:02:58]} 8. Bxa6 {[%clk 0:02:39]}  Nxa6 {[%clk 0:02:59]} 9. h4 {[%clk 0:01:55]}  h5 {[%clk 0:02:58]} 10. Bg5 {[%clk 0:01:51]}  Nf5 {[%clk 0:02:59]} 11. c4 {[%clk 0:01:40]}  dxc4 {[%clk 0:01:28]} 12. Qxc4 {[%clk 0:01:39]}  Nb4 {[%clk 0:01:28]} 13. Nc3 {[%clk 0:01:36]}  c6 {[%clk 0:01:21]} 14. Rac1 {[%clk 0:01:31]}  Be7 {[%clk 0:01:07]} 15. a3 {[%clk 0:01:30]}  Nd5 {[%clk 0:01:06]} 16. Nxd5 {[%clk 0:01:26]}  cxd5 {[%clk 0:01:04]} 17. Qc6 {[%clk 0:01:19]}  Rb8 {[%clk 0:00:56]} 18. a4 {[%clk 0:01:09]}  Qxc6 {[%clk 0:00:37]} 19. Rxc6 {[%clk 0:01:10]}  Kd7 {[%clk 0:00:36]} 20. Rfc1 {[%clk 0:01:08]}  Rb7 {[%clk 0:00:37]} 21. Bxe7 {[%clk 0:01:04]}  Nxe7 {[%clk 0:00:36]} 22. Rd6+ {[%clk 0:01:03]}  Ke8 {[%clk 0:00:33]} 23. Ng5 {[%clk 0:01:03]}  Rf8 {[%clk 0:00:17]} 24. f3 {[%clk 0:00:56]}  Nf5 {[%clk 0:00:13]} 25. Rdc6 {[%clk 0:00:08]}  Kd7 {[%clk 0:00:13]} 26. g4 {[%clk 0:00:03]}  Nxd4 {[%clk 0:00:13]} 27. Rd6+ {[%clk 0:00:03]}  Ke7 {[%clk 0:00:12]} 28. Kf2 {[%clk 0:00:02]}  Nb3 {[%clk 0:00:10]} 29. Rcc6 {[%clk 0:00:01]}  Nc5 {[%clk 0:00:08]} 30. Rxb6 {[%clk 0:00:02]}  Rxb6 {[%clk 0:00:07]} 31. Rxb6 {[%clk 0:00:02]}  f6 {[%clk 0:00:07]} 32. exf6+ {[%clk 0:00:01]}  gxf6 {[%clk 0:00:07]} 33. Nh3 {[%clk 0:00:02]}  hxg4 {[%clk 0:00:07]} 34. fxg4 {[%clk 0:00:03]}  Nxa4 {[%clk 0:00:07]} 35. Rb7+ {[%clk 0:00:02]}  Kd6 {[%clk 0:00:07]} 36. Nf4 {[%clk 0:00:03]}  e5 {[%clk 0:00:03]} 37. Ng6 {[%clk 0:00:03]}  Rc8 {[%clk 0:00:03]} 38. h5 {[%clk 0:00:03]}  Rc2+ {[%clk 0:00:00]} 39. Kg3 {[%clk 0:00:03]} 1-0


[Site "https://www.chess.com"]

[Event "Titled Tuesday Blitz May 30 Early 2023"]
[White "Wang, Ricky"]
[Black "Miranda, Rafael"]
[WhiteFideId "2071916"]
[BlackFideId "130990"]
[WhiteElo "2319"]
[BlackElo "2204"]
[Result "0-1"]
[Round "09"]
[TimeControl "180+2"]
[Date "2023.05.30"]
[WhiteClock "0:01:26"]
[BlackClock "0:01:53"]

1. e4 {[%clk 0:03:00]}  e5 {[%clk 0:02:58]} 2. Nf3 {[%clk 0:03:00]}  Nc6 {[%clk 0:02:58]} 3. d4 {[%clk 0:03:00]}  exd4 {[%clk 0:02:58]} 4. Nxd4 {[%clk 0:03:00]}  Bb4+ {[%clk 0:02:58]} 5. c3 {[%clk 0:03:00]}  Bc5 {[%clk 0:02:59]} 6. Be3 {[%clk 0:02:58]}  Bb6 {[%clk 0:02:59]} 7. Nxc6 {[%clk 0:02:49]}  bxc6 {[%clk 0:02:57]} 8. Bxb6 {[%clk 0:02:44]}  axb6 {[%clk 0:02:57]} 9. Be2 {[%clk 0:02:44]}  d6 {[%clk 0:02:57]} 10. O-O {[%clk 0:02:44]}  Nf6 {[%clk 0:02:56]} 11. Re1 {[%clk 0:02:42]}  O-O {[%clk 0:02:57]} 12. c4 {[%clk 0:02:27]}  Nd7 {[%clk 0:02:48]} 13. Nc3 {[%clk 0:02:26]}  Qf6 {[%clk 0:02:42]} 14. Bg4 {[%clk 0:02:20]}  Ne5 {[%clk 0:02:39]} 15. Bxc8 {[%clk 0:02:20]}  Raxc8 {[%clk 0:02:39]} 16. b3 {[%clk 0:02:15]}  Nxc4 {[%clk 0:02:39]} 17. Rc1 {[%clk 0:02:10]}  Ne5 {[%clk 0:02:36]} 18. f4 {[%clk 0:02:04]}  Qxf4 {[%clk 0:02:33]} 19. Ne2 {[%clk 0:02:00]}  Qe3+ {[%clk 0:02:27]} 20. Kh1 {[%clk 0:02:00]}  Nd3 {[%clk 0:02:28]} 21. Qc2 {[%clk 0:01:32]}  Nf2+ {[%clk 0:02:18]} 22. Kg1 {[%clk 0:01:32]}  Nxe4+ {[%clk 0:02:17]} 23. Kh1 {[%clk 0:01:31]}  Nf2+ {[%clk 0:02:18]} 24. Kg1 {[%clk 0:01:32]}  Nd3+ {[%clk 0:02:11]} 25. Kh1 {[%clk 0:01:32]}  Rfe8 {[%clk 0:01:53]} 26. Qc3 {[%clk 0:01:26]} 0-1


[Site "https://www.chess.com"]

[Event "Titled Tuesday Blitz May 30 Early 2023"]
[White "Dilmukhametov, Artur"]
[Black "Melian, Juan Sebastian"]
[WhiteFideId "24179922"]
[BlackFideId "3706575"]
[WhiteElo "2242"]
[BlackElo "2092"]
[Result "1-0"]
[Round "09"]
[TimeControl "180+2"]
[Date "2023.05.30"]
[WhiteClock "0:00:37"]
[BlackClock "0:00:00"]

1. e4 {[%clk 0:03:00]}  c5 {[%clk 0:02:53]} 2. f4 {[%clk 0:03:00]}  Nc6 {[%clk 0:02:47]} 3. Nf3 {[%clk 0:03:00]}  g6 {[%clk 0:02:35]} 4. Bb5 {[%clk 0:02:59]}  Bg7 {[%clk 0:02:34]} 5. O-O {[%clk 0:02:59]}  Nd4 {[%clk 0:02:31]} 6. Be2 {[%clk 0:02:58]}  d6 {[%clk 0:02:23]} 7. d3 {[%clk 0:02:57]}  e6 {[%clk 0:02:08]} 8. c3 {[%clk 0:02:55]}  Nxe2+ {[%clk 0:02:04]} 9. Qxe2 {[%clk 0:02:56]}  Ne7 {[%clk 0:02:05]} 10. Nbd2 {[%clk 0:02:54]}  O-O {[%clk 0:02:04]} 11. Qf2 {[%clk 0:02:54]}  b6 {[%clk 0:01:53]} 12. Qh4 {[%clk 0:02:52]}  Nc6 {[%clk 0:01:45]} 13. Qh3 {[%clk 0:02:47]}  Qe7 {[%clk 0:01:26]} 14. e5 {[%clk 0:02:37]}  dxe5 {[%clk 0:01:08]} 15. fxe5 {[%clk 0:02:37]}  Nxe5 {[%clk 0:01:08]} 16. Nxe5 {[%clk 0:02:37]}  Bxe5 {[%clk 0:01:09]} 17. Ne4 {[%clk 0:02:37]}  f5 {[%clk 0:01:06]} 18. Bg5 {[%clk 0:02:32]}  Qd7 {[%clk 0:01:00]} 19. Qh4 {[%clk 0:02:02]}  fxe4 {[%clk 0:00:20]} 20. Rxf8+ {[%clk 0:02:01]}  Kxf8 {[%clk 0:00:21]} 21. Rf1+ {[%clk 0:02:01]}  Kg8 {[%clk 0:00:21]} 22. Qxe4 {[%clk 0:01:55]}  Bb7 {[%clk 0:00:07]} 23. Qxe5 {[%clk 0:01:55]}  Qd5 {[%clk 0:00:07]} 24. Qxd5 {[%clk 0:01:49]}  Bxd5 {[%clk 0:00:08]} 25. c4 {[%clk 0:01:40]}  Bc6 {[%clk 0:00:08]} 26. Re1 {[%clk 0:01:38]}  Bd7 {[%clk 0:00:07]} 27. Kf2 {[%clk 0:01:27]}  Rf8+ {[%clk 0:00:07]} 28. Ke3 {[%clk 0:01:28]}  Rf5 {[%clk 0:00:08]} 29. Bf4 {[%clk 0:01:27]}  g5 {[%clk 0:00:07]} 30. Bb8 {[%clk 0:01:27]}  Bc6 {[%clk 0:00:06]} 31. Bxa7 {[%clk 0:01:23]}  Bxg2 {[%clk 0:00:06]} 32. Bxb6 {[%clk 0:01:23]}  Rf3+ {[%clk 0:00:06]} 33. Ke2 {[%clk 0:01:23]}  Rh3 {[%clk 0:00:06]} 34. Kf2 {[%clk 0:01:21]}  Bc6 {[%clk 0:00:03]} 35. Rxe6 {[%clk 0:01:21]}  Bd7 {[%clk 0:00:03]} 36. Rd6 {[%clk 0:01:15]}  Bg4 {[%clk 0:00:03]} 37. Bxc5 {[%clk 0:01:10]}  h5 {[%clk 0:00:04]} 38. Kg2 {[%clk 0:01:01]}  Rf3 {[%clk 0:00:02]} 39. Rg6+ {[%clk 0:01:00]}  Kh7 {[%clk 0:00:02]} 40. Rxg5 {[%clk 0:01:00]}  Rf7 {[%clk 0:00:03]} 41. h3 {[%clk 0:00:55]}  Bf3+ {[%clk 0:00:02]} 42. Kg3 {[%clk 0:00:53]}  Be2 {[%clk 0:00:03]} 43. b3 {[%clk 0:00:43]}  Bxd3 {[%clk 0:00:02]} 44. Rxh5+ {[%clk 0:00:44]}  Kg6 {[%clk 0:00:03]} 45. Rd5 {[%clk 0:00:43]}  Be4 {[%clk 0:00:03]} 46. Rd6+ {[%clk 0:00:43]}  Kf5 {[%clk 0:00:03]} 47. Bd4 {[%clk 0:00:39]}  Rf8 {[%clk 0:00:03]} 48. Rf6+ {[%clk 0:00:37]}  Kg5 {[%clk 0:00:00]} 49. Rxf8 {[%clk 0:00:37]} 1-0


[Site "https://www.chess.com"]

[Event "Titled Tuesday Blitz May 30 Early 2023"]
[White "Liu, Xiangyi"]
[Black "Nugumanov, Bakhtiyar"]
[WhiteFideId "8605718"]
[BlackFideId "13701797"]
[WhiteElo "2323"]
[BlackElo "2209"]
[Result "1-0"]
[Round "09"]
[TimeControl "180+2"]
[Date "2023.05.30"]
[WhiteClock "0:01:06"]
[BlackClock "0:00:00"]

1. e4 {[%clk 0:03:00]}  e6 {[%clk 0:03:00]} 2. Nf3 {[%clk 0:03:00]}  d5 {[%clk 0:02:59]} 3. e5 {[%clk 0:03:01]}  Bd7 {[%clk 0:02:57]} 4. g3 {[%clk 0:02:59]}  c5 {[%clk 0:02:55]} 5. Bg2 {[%clk 0:02:59]}  Nc6 {[%clk 0:02:52]} 6. O-O {[%clk 0:02:59]}  Nge7 {[%clk 0:02:28]} 7. Re1 {[%clk 0:02:58]}  Qc7 {[%clk 0:02:22]} 8. d3 {[%clk 0:02:46]}  h6 {[%clk 0:02:15]} 9. c4 {[%clk 0:02:45]}  O-O-O {[%clk 0:01:56]} 10. Nc3 {[%clk 0:02:44]}  g5 {[%clk 0:01:48]} 11. Nb5 {[%clk 0:02:32]}  Qb6 {[%clk 0:01:47]} 12. h4 {[%clk 0:02:31]}  g4 {[%clk 0:01:39]} 13. Nh2 {[%clk 0:02:30]}  Ng6 {[%clk 0:01:36]} 14. Nxg4 {[%clk 0:02:22]}  h5 {[%clk 0:01:34]} 15. Nf6 {[%clk 0:02:16]}  dxc4 {[%clk 0:01:32]} 16. dxc4 {[%clk 0:01:25]}  Ncxe5 {[%clk 0:01:27]} 17. Nxd7 {[%clk 0:01:25]}  Rxd7 {[%clk 0:01:28]} 18. Qa4 {[%clk 0:01:24]}  a6 {[%clk 0:01:21]} 19. Be3 {[%clk 0:01:09]}  Nxc4 {[%clk 0:00:37]} 20. Qxc4 {[%clk 0:01:06]}  Qxb5 {[%clk 0:00:00]} 21. Qc3 {[%clk 0:01:06]} 1-0


[Site "https://www.chess.com"]